Cogmind - Beta 15 @@@ ROGUE MODE // 2025.05.24 @ 20:16:31 Player: Epsilon 11 Result: Destroyed by G-50 Soldier with Heavy Laser Performance ------------- Evolutions (5) 2500 Regions Visited (5) 1000 Robots Destroyed (89) 445 Value Destroyed (3496) 3496 Prototype IDs (20) 400 Alien Tech Used (0) 0 Bonus (3647) 3647 TOTAL SCORE: 11488 Bonus ------- High Alert Combat Kills 632 Follower Combat Kills 215 Delivered SUBCON Basin 2000 Registered with UFD 300 Met Optimus in HQ 500 Cogmind --------- Core Integrity 0/1000 Matter 300/300 Energy 315/315 System Corruption 16% Temperature Cool (9) Movement Rolling (170) Ox6 Location -5/Factory Parts ------- > --- POWER (1) -------- Neutrino Core > --- PROPULSION (4) --- Wheel > --- UTILITY (10) ----- High-capacity Storage Unit Advanced Melee Analysis Suite Advanced Melee Analysis Suite Improved Target Analyzer Improved Target Analyzer Improved Weapon Shielding Improved Weapon Shielding > --- WEAPON (2) ------- Companion Sword > --- INVENTORY (20) --- Advanced Heat Sink Enhanced Optical Array Advanced ECM Suite Makeshift Hacking Suite Improved System Restoration Module Variable Charge Gun Improved Remote Datajack Plasma Cutter CPS Tube (2) Force Lance Vortex Trap Peak State ------------ > --- POWER ------------ Angular Momentum Engine Reinforced Fission Core > --- PROPULSION ------- Wheel Wheel Wheel Compact Wheel Armored Huge Wheel > --- UTILITY ---------- Advanced Heat Sink Advanced Cooling System High-capacity Storage Unit Machine Analyzer Transmission Jammer Advanced ECM Suite Heavy Reactive Plating Tower Shield Improved Focal Shield Tech Extrapolator > --- WEAPON ----------- High-powered Shock Rifle High-powered Shock Rifle Tesla Rifle Variable Charge Gun > --- INVENTORY -------- Flexi-carbon Leg Enhanced Optical Array Advanced Melee Analysis Suite Force Booster Improved Medium Armor Plating EM Shield Makeshift Hacking Suite Improved Corruption Screen Improved System Restoration Module Drone Bay Scrapoid Pod Disruptor Cannon Improved Remote Datajack Plasma Cutter CPS Tube Companion Sword Force Lance Vortex Trap [Rating: 119] Favorites ----------- Power Subdweller Power Source Engine Subdweller Power Source Power Core Reinforced Fission Core Propulsion Wheel Leg Carbon-fiber Leg Wheel Wheel Utility High-capacity Storage Unit Device Shield Generator Storage High-capacity Storage Unit Processor Tech Extrapolator Protection Scrap Shield Weapon Grenade Launcher Energy Gun EM Shotgun Energy Cannon Subdweller Beam Cannon Ballistic Gun Subdweller Machine Gun Launcher Grenade Launcher Special Weapon CPS Tube Slashing Weapon Companion Sword Build | -11 -10 -10 -7 -7 -5 ------- Run | Yrd Mat Sub Rec Scr Fac Slots Evolved 10 | . . . . . 10 Power . | . . . . . . Propulsion 2 | . . . . . 2 Utility 8 | . . . . . 8 Weapon . | . . . . . . Parts Attached 95 | 6 6 25 1 4 53 Power 11 | 1 . 2 . 1 7 Engine 6 | 1 . 2 . 1 2 Core 5 | . . . . . 5 Reactor . | . . . . . . Propulsion 27 | 2 . 9 1 1 14 Treads . | . . . . . . Leg 6 | . . . . . 6 Wheel 21 | 2 . 9 1 1 8 Hover . | . . . . . . Flight . | . . . . . . Utility 37 | 1 4 6 . 1 25 Device 12 | . . 1 . 1 10 Storage 3 | 1 2 . . . . Processor 8 | . . . . . 8 Hackware . | . . . . . . Protection 14 | . 2 5 . . 7 Artifact . | . . . . . . Weapon 20 | 2 2 8 . 1 7 Energy Gun 11 | 1 2 3 . . 5 Energy Cannon 3 | . . 2 . . 1 Ballistic Gun 2 | 1 . 1 . . . Ballistic Cannon . | . . . . . . Launcher 1 | . . 1 . . . Special Weapon 1 | . . . . 1 . Impact Weapon . | . . . . . . Slashing Weapon 2 | . . 1 . . 1 Piercing Weapon . | . . . . . . Special Melee Weapon . | . . . . . . Unidentified Prototypes 1 | . . . . . 1 Corrupted Parts 1 | . . 1 . . . System Corruption 2 | . . 2 . . . Parts Lost 39 | . 1 7 . . 31 Power 6 | . 1 . . . 5 Propulsion 13 | . . 3 . . 10 Utility 18 | . . 2 . . 16 Weapon 2 | . . 2 . . . Highest Loss Streak 10 | . 1 4 . . 10 To Critical Strikes 1 | . . . . . 1 Average Backups 9 | . 6 7 2 9 15 Power . | . . . . . . Propulsion . | . . . . 1 . Utility 5 | . 3 2 2 7 8 Weapon 2 | . 2 3 . . 2 Tool/Special . | . . . . . . Unused Backups 14 | . . 5 . 1 8 Power . | . . . . . . Propulsion 2 | . . . . 1 1 Utility 5 | . . 1 . . 4 Weapon 3 | . . 2 . . 1 Tool/Special 4 | . . 2 . . 2 Average Slot Usage (%) 83 | . 91 89 99 69 81 Engine 8 | . 9 13 14 6 3 Wheel 20 | . 28 27 27 18 11 Device 9 | . . 2 14 9 19 Storage 8 | . 14 6 14 14 4 Processor 4 | . . . . . 15 Protection 6 | . 10 11 . . 6 Energy Gun 7 | . 19 13 . . 6 Energy Cannon 1 | . . 2 2 . . Ballistic Gun 4 | . 8 6 14 5 . Launcher 4 | . . 1 11 14 . Slashing Weapon 1 | . . 3 . . 1 Peak Build Rating 119 | 6 10 33 32 29 119 Average Rating 36 | 4 7 15 30 17 83 On Entrance 14 | . 6 9 32 13 29 Naked Turns . | . . . . . . Heaviest Build 176 | 13 49 59 59 59 176 Greatest Support 74 | 26 26 40 30 28 74 Greatest Overweight (x) 16 | . 1 3 5 2 16 Average Overweight (x) 1 | . . . 1 1 1 Largest Inventory Capacity 20 | 8 20 20 20 20 20 Average Capacity 16 | 7 13 11 20 20 20 Most Carried 20 | . 12 20 20 20 20 Average Carried 13 | . 6 10 19 11 17 Final Capacity 20 | 8 20 20 20 20 20 Final Carried 20 | . 12 20 6 20 11 Class Distribution -------------------- 54% | Mutant 19% | Subdweller-Mutant 9% | Scavenger-Tank 8% | Scavenger-Mutant 5% | Infiltrator-Mutant Dominant Class ---------------- Mutant | -10/Materials Subdweller-Mutant | -10/Subcaves Mutant | -7/Recycling Mutant | -7/Scraptown Scavenger-Tank | -5/Factory Resources | -11 -10 -10 -7 -7 -5 ----------- Run | Yrd Mat Sub Rec Scr Fac Matter Collected 2148 | 230 105 529 138 33 1113 Remotely . | . . . . . . Salvage Created 4288 | . 397 567 138 . 3186 Parts 209 | . 20 38 1 . 150 Haulers Intercepted 1 | . 1 . . . . Recyclers Shooed 1 | . . . . . 1 Parts Field Recycled . | . . . . . . Retrieved Matter . | . . . . . . Parts Self-Destructed 9 | . . 9 . . . Prevented 2 | . . 2 . . . Kills | -11 -10 -10 -7 -7 -5 ------- Run | Yrd Mat Sub Rec Scr Fac Combat Hostiles Destroyed 70 | . 8 17 . . 45 Melee 25 | . . . . . 25 Guns 30 | . 7 8 . . 15 Cannons 3 | . . 3 . . . AOE 9 | . . 6 . . 3 Classes Destroyed 12 | . 5 2 1 . 4 Worker 12 | . 1 . . . 11 Tunneler 1 | . . . . . 1 Hauler 1 | . 1 . . . . Recycler 4 | . . . 2 . 2 Watcher 1 | . 1 . . . . Swarmer 12 | . 3 4 . . 5 Grunt 24 | . 5 1 . . 18 Brawler 3 | . . . . . 3 Sentry 4 | . . 1 . . 3 Hunter 3 | . . . . . 3 Programmer 13 | . . . . . 13 Subdweller 11 | . . 11 . . . Best Kill Streak 8 | . 3 4 1 . 8 Combat Bots Only 7 | . 3 4 . . 7 Max Kills in Single Turn 3 | . 1 1 1 . 3 Gunslinging 1 | . . . . . 1 Exploded 1 | . . 1 . . 1 Melee 1 | . . . . . 1 Uniques/NPCs Destroyed . | . . . . . . Combat | -11 -10 -10 -7 -7 -5 -------- Run | Yrd Mat Sub Rec Scr Fac Hostile Shots Fired 518 | . 38 95 . . 385 Missed 151 | . 12 34 . . 105 Hits 367 | . 26 61 . . 280 Melee 4 | . . . . . 4 Projectile 363 | . 26 61 . . 276 AOE 4 | . . 4 . . . Critical Strikes 11 | . . . . . 11 Damage Taken 7041 | . 312 1416 . . 5313 Core 1256 | . 81 162 . . 1013 Absorbed by Shields 52 | . . 41 . . 11 Ignored by Resistances 524 | . . . . . 524 Regen/Repaired (Parts) 572 | . . . . . 572 Core Remaining (%) 51 | 100 . . . 2 . Volleys Fired 200 | . 40 66 22 . 72 Largest 4 | . 2 2 1 . 4 Hottest 410 | . 90 140 80 . 410 Shots Fired 379 | . 79 108 21 . 171 Gun 310 | . 79 67 5 . 159 Cannon 53 | . . 25 16 . 12 Launcher 16 | . . 16 . . . Special . | . . . . . . Kinetic 62 | . 30 27 5 . . Thermal 155 | . 29 46 16 . 64 Explosive 16 | . . 16 . . . Electromagnetic 146 | . 20 19 . . 107 Robot Hit Streak 15 | . 9 15 10 . 13 Robot Miss Streak 4 | . 4 3 1 . 4 Penetration Max . | . . . . . . Secondary Targets 2 | . . . . . 2 Max Gunslinging Chain 1 | . . . . . 1 Shots Hit Robots 334 | . 45 72 4 . 213 Core Hits 153 | . 21 41 2 . 89 Critical Kills 1 | . . . 1 . . Critical Parts Destroyed . | . . . . . . Critical Strikes 11 | . . 1 1 . 9 Destroy 2 | . . 1 1 . . Corrupt 3 | . . . . . 3 Melee Attacks 176 | . . 62 . . 114 Impact . | . . . . . . Slashing 176 | . . 62 . . 114 Piercing . | . . . . . . Sneak Attacks 8 | . . . . . 8 Combat Hostiles 1 | . . . . . 1 Follow-up Attacks 3 | . . . . . 3 Damage Inflicted 10689 | . 539 2223 80 . 7847 Guns 4266 | . 539 1002 80 . 2645 Cannons 369 | . . 224 . . 145 Explosions 1589 | . . 997 . . 592 Melee 4465 | . . . . . 4465 Ramming . | . . . . . . Kinetic 622 | . 101 441 80 . . Thermal 2740 | . 185 551 . . 2004 Explosive 997 | . . 997 . . . Electromagnetic 1865 | . 253 234 . . 1378 Impact . | . . . . . . Slashing 4465 | . . . . . 4465 Piercing . | . . . . . . Highest Corruption 16 | . . 2 3 . 16 Average Corruption 2 | . . 2 2 . 4 Corruption Purged . | . . . . . . Corruption Blocked 5 | . . . . . 5 Effects 67 | . . 34 8 . 25 Message Errors 12 | . . 6 1 . 5 Matter Fused 18 | . . 7 4 . 7 Heat Flow Errors 10 | . . 6 1 . 3 Energy Discharges 8 | . . 3 1 . 4 Data Loss (minor) 8 | . . 5 . . 3 Data Loss (major) 2 | . . 2 . . . Misfires 4 | . . 4 . . . Alerts 4 | . . 1 1 . 2 Misdirections 1 | . . . . . 1 Overload Shots 15 | . . . . . 15 Overflow Damage 560 | . . 36 . . 524 Projectiles . | . . . . . . Explosions 217 | . . 36 . . 181 Melee 343 | . . . . . 343 Knockbacks . | . . . . . . Impact . | . . . . . . Kinetic . | . . . . . . Secondary . | . . . . . . Self-Inflicted Damage 342 | . . 71 . . 271 Shots 6 | . . 2 . . 4 Rammed . | . . . . . . Targets Rammed . | . . . . . . Kicked . | . . . . . . Crushed . | . . . . . . Highest Temperature 510 | . 225 233 200 . 510 Average Temperature 109 | . 65 58 82 . 151 Received Heat Transfer 1911 | . 126 177 . . 1608 Effects 6 | . . . . . 6 Shutdowns 3 | . . . . . 3 Interference 2 | . . . . . 2 Damage (minor) 1 | . . . . . 1 Siege Activations . | . . . . . . Martial Activations . | . . . . . . Shielding Activations . | . . . . . . Robots Disrupted 1 | . . . . . 1 Combat Hostiles 1 | . . . . . 1 Robots Corrupted 2 | . 1 . . . 1 Combat Hostiles 2 | . 1 . . . 1 Parts Fried 11 | . 1 1 . . 9 Impact Corruptions . | . . . . . . Robots Melted 1 | . . . . . 1 Combat Hostiles 1 | . . . . . 1 Parts Melted 9 | . . 1 . . 8 Heat Transferred 3420 | . 555 696 . . 2169 Parts Sabotaged . | . . . . . . Parts Stolen . | . . . . . . Parts Stripped . | . . . . . . Power Chain Reactions 2 | . . . . . 2 Alert | -11 -10 -10 -7 -7 -5 ------- Run | Yrd Mat Sub Rec Scr Fac Maximum Alert Level 3 | . . . . . 3 Low Security (%) 63 | 100 100 . 100 . 46 Level 1 7 | . . . . . 11 Level 2 4 | . . . . . 7 Level 3 24 | . . . . . 35 Level 4 . | . . . . . . Level 5 . | . . . . . . High Security . | . . . . . . Max Security . | . . . . . . Peak Influence 1064 | . 83 . 60 . 1064 Initial . | . . . . . . Average 274 | . 28 . 7 . 394 Influence Increases 2483 | . 241 210 137 . 1895 Destroy 0b10 Robot/C 1280 | . 160 120 . . 1000 Destroy 0b10 Robot/NC 95 | . 15 . 10 . 70 Destroy Leader 244 | . 34 . . . 210 Allied During Kill 49 | . . . . . 49 Successful Hack 189 | . 32 . 60 . 97 Select Force Hacks 60 | . . . 60 . . Disable Machine 165 | . . . . . 165 Destroy Structure 191 | . . . 7 . 184 Lose Combat Pursuer 210 | . . 90 . . 120 Influence Decreases 1498 | . 213 238 101 36 910 Entered New Map 50 | . . 14 . 36 . Time Decay 1028 | . 203 214 101 . 510 Lost Part 320 | . 10 10 . . 300 Lost Ally 100 | . . . . . 100 Squads Dispatched 16 | . 1 . . . 15 Investigation 5 | . . . . . 5 Extermination 6 | . . . . . 6 Reinforcement 5 | . 1 . . . 4 Assault . | . . . . . . Garrison . | . . . . . . Intercept . | . . . . . . Searches Triggered . | . . . . . . Construction Impeded . | . . . . . . Haulers Reinforced 1 | . . . . . 1 Active Scanning Responses . | . . . . . . Cargo Convoy Interrupts 1 | . . . . . 1 Stealth | -11 -10 -10 -7 -7 -5 --------- Run | Yrd Mat Sub Rec Scr Fac Distress Signals 4 | . 2 . . . 2 Communications Jammed 7 | . . . . . 7 Distress Signals 6 | . . . . . 6 Times Spotted 115 | . 18 24 . . 73 Peak Tracking Total 6 | . 5 6 . . 6 Tactical Retreats 7 | . . 1 . . 6 Traps | -11 -10 -10 -7 -7 -5 ------- Run | Yrd Mat Sub Rec Scr Fac Traps Triggered 9 | . 1 4 . . 4 Indirectly . | . . . . . . Trap Hack Attempts . | . . . . . . Triggered . | . . . . . . Disarmed . | . . . . . . Reprogrammed . | . . . . . . Reused . | . . . . . . Traps Extracted . | . . . . . . Installed . | . . . . . . Triggered . | . . . . . . Most Traps Carried 1 | . . . . 1 1 Machines | -11 -10 -10 -7 -7 -5 ---------- Run | Yrd Mat Sub Rec Scr Fac Machines Disabled 12 | . . 1 . . 11 Max in Single Turn 4 | . . 1 . . 4 Garrison Access 1 | . . . . . 1 Machines Repaired . | . . . . . . Machines Dismantled . | . . . . . . Machines Sabotaged . | . . . . . . Overloaded Fab Kills . | . . . . . . Hacking | -11 -10 -10 -7 -7 -5 --------- Run | Yrd Mat Sub Rec Scr Fac Machines Accessed 41 | . 7 4 8 4 18 Terminals 17 | . 7 . 5 . 5 Fabricators 2 | . . . . . 2 Repair Stations 3 | . . . . . 3 Recycling Units 7 | . . . 3 . 4 Scanalyzers 2 | . . . . . 2 Garrison Access 2 | . . . . . 2 Total Hacks 108 | . 23 7 20 8 50 Successful 64 | . 12 7 8 8 29 Failed 44 | . 11 . 12 . 21 Catastrophic 9 | . . . 4 . 5 Database Lockouts . | . . . . . . Manual 48 | . 17 . 12 . 19 Terminals 49 | . 23 . 15 . 11 Fabricators 6 | . . . . . 6 Repair Stations 8 | . . . . . 8 Recycling Units 14 | . . . 5 . 9 Scanalyzers 11 | . . . . . 11 Garrison Access 5 | . . . . . 5 Terminal Hacks 20 | . 4 7 1 8 . Record 10 | . . 4 . 6 . Robot Analysis 1 | . 1 . . . . Open Door 2 | . . 1 . 1 . Terminal Index 1 | . 1 . . . . Repair Station Index 1 | . . . 1 . . Recall Reinforcements 1 | . 1 . . . . Hauler Manifests 1 | . 1 . . . . Proto ID Catalog 2 | . . 1 . 1 . Release Object 1 | . . 1 . . . Fabricator Hacks 3 | . . . . . 3 Network Status 1 | . . . . . 1 Load Schematic 1 | . . . . . 1 Build 1 | . . . . . 1 Repair Station Hacks 5 | . . . . . 5 Scan Component 3 | . . . . . 3 Repair 2 | . . . . . 2 Recycling Unit Hacks 3 | . . . 1 . 2 Report Inventory 3 | . . . 1 . 2 Scanalyzer 9 | . . . . . 9 Insert Component 4 | . . . . . 4 Analyze 5 | . . . . . 5 Garrison Access Hacks 1 | . . . . . 1 Seal Access 1 | . . . . . 1 Unauthorized Hacks 23 | . 8 . 6 . 9 Terminals 16 | . 8 . 4 . 4 Botnet 2 | . 2 . . . . Skim 14 | . 6 . 4 . 4 Fabricators 1 | . . . . . 1 Prioritize 1 | . . . . . 1 Repair Stations . | . . . . . . Recycling Units 6 | . . . 2 . 4 Tunnel 2 | . . . 2 . . Fedlink 3 | . . . . . 3 Scrapoids 1 | . . . . . 1 Scanalyzers . | . . . . . . Garrison Access . | . . . . . . Data Cores Recovered . | . . . . . . Used . | . . . . . . Hacking Detections 29 | . 7 . 5 . 17 Full Trace Events 2 | . . . 1 . 1 Feedback Events 1 | . . . 1 . . Corruption 1 | . . . 1 . . Feedback Blocked . | . . . . . . Robot Schematics Acquired . | . . . . . . Robots Built . | . . . . . . Authchips . | . . . . . . Time . | . . . . . . Total Robot Build Rating . | . . . . . . Part Schematics Acquired 16 | . . . . . 16 Parts Built 2 | . . . . . 2 Authchips . | . . . . . . Time 47 | . . . . . 47 Total Part Build Rating 10 | . . . . . 10 Parts Repaired 2 | . . . . . 2 Time 52 | . . . . . 52 Parts Recycled . | . . . . . . Recycled Matter . | . . . . . . Retrieved Matter . | . . . . . . Retrieved Components . | . . . . . . Parts Scanalyzed 4 | . . . . . 4 Part Schematics Acquired 4 | . . . . . 4 Parts Damaged . | . . . . . . Bothacking | -11 -10 -10 -7 -7 -5 ------------ Run | Yrd Mat Sub Rec Scr Fac Used RIF Installer . | . . . . . . Robots Hacked . | . . . . . . Non-combat . | . . . . . . Combat . | . . . . . . Robot Hacks Applied . | . . . . . . Relay Couplers Released . | . . . . . . Fabnet Peak Effective % . | . . . . . . Robots Rewired . | . . . . . . Allies Hacked . | . . . . . . Hacks Repelled . | . . . . . . Allies | -11 -10 -10 -7 -7 -5 -------- Run | Yrd Mat Sub Rec Scr Fac Total Allies 5 | . . . . . 5 Largest Group 5 | . . . . . 5 Highest-Rated Group 235 | . . . . . 235 Highest-Rated Ally 47 | . . . . . 47 Total Orders 2 | . . . . . 2 RETURN 2 | . . . . . 2 Ally Attacks 34 | . . . . . 34 Total Damage 825 | . . . . . 825 Kills 5 | . . . . . 5 Allies Corrupted . | . . . . . . Allies Melted 1 | . . . . . 1 Intel | -11 -10 -10 -7 -7 -5 ------- Run | Yrd Mat Sub Rec Scr Fac Active Infowar (turns) 2281 | . . . . 1 2280 Machine Analysis 2187 | . . . . . 2187 Jamming 1526 | . . . . . 1526 ECM 46 | . . . . 1 45 Robot Analysis Total 1 | . 1 . . . . Derelict Logs Recovered 3 | . . . . 3 . Drone Launches 2 | . . . . . 2 Drone Recoveries 2 | . . . . . 2 Exploration | -11 -10 -10 -7 -7 -5 ------------- Run | Yrd Mat Sub Rec Scr Fac Turns Passed 9816 | 49 598 3368 700 2195 2906 Spaces Moved 7040 | 45 452 2496 519 1835 1693 Core 2 | 1 . . . . 1 Treads . | . . . . . . Legs 184 | . . . . . 184 Wheels 6854 | 44 452 2496 519 1835 1508 Hover . | . . . . . . Flight . | . . . . . . Fastest Speed 50 | 50 90 105 107 115 108 Average Speed 116 | 88 94 114 119 118 122 Slowest Speed 850 | 90 105 145 155 130 850 Overloaded Moves . | . . . . . . Propulsion Burnouts . | . . . . . . Robots Hopped . | . . . . . . Potential Cave-ins 2 | . . 2 . . . Cave-ins Triggered . | . . . . . . Exploration Rate (%) 64 | 3 67 92 96 83 46 Regions Visited 5 Branch Regions 3 Pre-discovered Areas 5 | . . 1 2 1 1 Known Exits Taken 1 | . 1 . . . . Unknown Exits Taken 4 | 1 . 1 1 1 . Scrap Searched 12 | . . 5 . 7 . Spaces Dug 32 | . . 11 16 . 5 Terrain Destroyed 187 | . . 70 16 . 101 Melee 8 | . . 5 . . 3 Projectile 31 | . . 6 16 . 9 AOE 148 | . . 59 . . 89 Terrain Rammed . | . . . . . . Walls Destroyed . | . . . . . . Machines Disabled . | . . . . . . Actions | -11 -10 -10 -7 -7 -5 --------- Run | Yrd Mat Sub Rec Scr Fac Total 8055 | 50 547 2772 579 1865 2242 Wait 362 | . 35 62 33 . 232 Move 7035 | 44 451 2495 518 1834 1693 Hop . | . . . . . . Pick Up 72 | . 12 15 1 17 27 Fast Attach 57 | 6 2 17 1 3 28 Attach 41 | . . 7 1 2 31 Detach 8 | . 1 1 1 3 2 Swap 30 | . 4 14 . . 12 Drop 47 | . 2 19 2 6 18 Fire 200 | . 40 66 22 . 72 Melee 173 | . . 62 . . 111 Ram . | . . . . . . Kick . | . . . . . . Crush . | . . . . . . Escape Stasis 16 | . . . . . 16 Rewire . | . . . . . . Trap . | . . . . . . Miscellaneous 14 | . . 14 . . . Route ------- -11/Scrapyard -10/Materials (discovered 5 exits: *Mat x3 / [*Min] / *Sub) -10/Subcaves (discovered 4 exits: *Mat x2 / *Rec / *Scr) -7/Recycling (discovered 2 exits: *Fac / *Scr) -7/Scraptown (discovered 2 exits: *Fac x2) -5/Factory (discovered 1 exit: [*Upp]) History --------- Turn | Location | Event 23 | -11/Scrapyard | Discovered new exit (range 15) 50 | -11/Scrapyard | Entered Materials 286 | -10/Materials | Discovered new exit (range 8) 309 | -10/Materials | Build established: Mutant 412 | -10/Materials | Discovered new exit (range 14) 546 | -10/Materials | Identified exit to Materials 546 | -10/Materials | Identified exit to Subcaves 581 | -10/Materials | Learned 2 Storage zone layouts 584 | -10/Materials | Learned Storage trap positions 602 | -10/Materials | Learned Storage interactive machine intel 624 | -10/Materials | Learned 2 Mines zone layouts 648 | -10/Materials | Entered Subcaves 649 | -10/Subcaves | Approached by a straggling Scientist 649 | -10/Subcaves | Identified exit to Materials 666 | -10/Subcaves | Learned location of Zion (-6) 666 | -10/Subcaves | Met a Zionite searching for "candidates" 763 | -10/Subcaves | Core integrity fell below 50% 809 | -10/Subcaves | Lost 4 parts (1n1u2w) 866 | -10/Subcaves | Shifting Twisted Machinery released Sub. Laser 870 | -10/Subcaves | Shifting Twisted Machinery released Battle Rifle 1223 | -10/Subcaves | Visited Clippyterm 1227 | -10/Subcaves | Learned Factory stockpile data 1227 | -10/Subcaves | Learned Factory garrison access intel 1409 | -10/Subcaves | Scientist uncovered a shortcut to Scraptown 1755 | -10/Subcaves | Discovered new exit (range 13) 1894 | -10/Subcaves | Build established: Subdweller-Mutant 2726 | -10/Subcaves | Visited 4L-MR0's lab 2803 | -10/Subcaves | Shifting Twisted Machinery released Shrapnel Trap 2822 | -10/Subcaves | A swath of the cavern ceiling suddenly collapsed 3075 | -10/Subcaves | Disturbed a concealed Subdweller 3299 | -10/Subcaves | Core integrity fell below 20% 3491 | -10/Subcaves | Found SUBCON Basin 3654 | -10/Subcaves | Found Tower Shield 3784 | -10/Subcaves | Build established: Mutant 4016 | -10/Subcaves | Entered Recycling 4180 | -7/Recycling | Discovered new exit (range 6) 4677 | -7/Recycling | Scanned before Scraplab entrance 4694 | -7/Recycling | Entered Scraplab 4714 | -7/Recycling | Discovered new exit (range 3) 4716 | -7/Recycling | Entered Scraptown 4716 | -7/Scraptown | System corruption cleaned by C-Scrubber 4964 | -7/Scraptown | Scanned Subdweller tech in exchange for log data 4968 | -7/Scraptown | Learned Research trap positions 4969 | -7/Scraptown | Learned location of Testing (-2) 4970 | -7/Scraptown | Learned location of 1 exit from Proximity Caves 4983 | -7/Scraptown | Discovered new exit (range 11) 5050 | -7/Scraptown | Visited Spacefarers 5061 | -7/Scraptown | Visited Assassins FH 5090 | -7/Scraptown | Visited Red Mages 5125 | -7/Scraptown | Visited Cyclists 5158 | -7/Scraptown | Visited Comm Corps 5214 | -7/Scraptown | Received an X-ray algorithm 5358 | -7/Scraptown | Visited The Evicted 5365 | -7/Scraptown | Visited Bundlers 5423 | -7/Scraptown | Visited UFD Registry 5423 | -7/Scraptown | Registered with UFD as "Scraproller" 5519 | -7/Scraptown | Guru changed UFD alias to "Shortface" 5634 | -7/Scraptown | Entered Cyclist Reading Room 5702 | -7/Scraptown | Visited Science Guys 5739 | -7/Scraptown | Visited Observation Area 5773 | -7/Scraptown | Visited Curators Association 5808 | -7/Scraptown | Visited Junk Cannon Lab 5853 | -7/Scraptown | Delivered Scrap Shield to a Scientist 5967 | -7/Scraptown | Visited Scrapoid Pod Storage 5992 | -7/Scraptown | Visited Scrapoid Research Area 6010 | -7/Scraptown | Visited Junk Repository 6041 | -7/Scraptown | Visited Chapter 10 6076 | -7/Scraptown | Visited Abandonware Association 6098 | -7/Scraptown | Learned abandonware demo "OVRCLOCK.EXE" 6100 | -7/Scraptown | Learned abandonware demo "REBOOT5.EXE" 6154 | -7/Scraptown | Visited Sword Containment 6196 | -7/Scraptown | Found Scrapoid Pod 6834 | -7/Scraptown | Met Optimus 6834 | -7/Scraptown | Accepted into 0bPrime 6908 | -7/Scraptown | Discovered new exit (range 3) 6911 | -7/Scraptown | Entered Factory 6911 | -5/Factory | Evolved 10 slots: Propulsion x2, Utility x8 6913 | -5/Factory | Loaded intel: 4 garrison access locations 7158 | -5/Factory | Tech Extrapolator generated special schematic: Deep Structural Scanner 7309 | -5/Factory | Repaired Hrd. Heavy Armor Plating 7441 | -5/Factory | Build established: Infiltrator-Mutant 7550 | -5/Factory | Discovered new exit (range 16) 7670 | -5/Factory | Attached Tower Shield, gained temporary slots: Power, Propulsion x2, Utility x2, Weapon x2 7767 | -5/Factory | Tech Extrapolator generated special schematic: Machine Rigger 7770 | -5/Factory | Found Hvy. Reactive Plating 7930 | -5/Factory | Build established: Scavenger-Tank 8061 | -5/Factory | Cargo convoy interrupted 8675 | -5/Factory | Repaired Broken Arm. Huge Wheel 9011 | -5/Factory | Fabricated Adv. Melee Analysis Suite (x2) 9139 | -5/Factory | Lost 10 parts (2p2n6u) 9151 | -5/Factory | Destroyed 7 combat bots 9255 | -5/Factory | Loaded intel: 8 recycling unit locations 9285 | -5/Factory | Learned location of Protoforge (-3) 9304 | -5/Factory | Core integrity fell below 50% 9392 | -5/Factory | Build established: Scavenger-Mutant 9464 | -5/Factory | System corruption reached 10% 9497 | -5/Factory | Lost 5 parts (1n4u) 9502 | -5/Factory | Core integrity fell below 20% 9731 | -5/Factory | Scrapoid reinforcements arrived 9764 | -5/Factory | Lost 5 parts (2p1n2u) 9804 | -5/Factory | Lost 5 allies 9817 | -5/Factory | Destroyed by G-50 Soldier with Heavy Laser Last Messages --------------- 09732_ Scrapoid Pod destroyed. 09732_ Destroyed Scrapoid Pod. 09732_ Slug penetrates P-70 Sage. 09732_ Slug penetrates Wall. 09733_ G-50 Soldier suffers critical hit (Destroy). 09733_ G-50 Soldier destroyed. 09733_ Drone Bay destroyed. 09733_ Destroyed Drone Bay. 09734_ P-70 Sage destroyed. 09736_ Acquired Neutrino Core. 09739_ Acquired 60 matter. 09740_ Acquired 70 matter. 09742_ Acquired Imp. Target Analyzer. 09744_ System corrupted: Energy discharge (-44). 09759_ Acquired 40 matter. 09791_ System corrupted: Component data lost. 09794_ Wheel destroyed. 09807_ 1H=OF#<=SV|6JJ:DTGAPPZO 09811_ Tech Extrapolator destroyed. 09815_ Destroyed Carbon-fiber Leg. Map ----- +----------------------------------------------------+ | ???????????????????? # #???? | | ??????????????????????? ??? #+##+####+####???? | | ????????????????????????????????????????# ######## | | ????????????????????????????????????????# ## | | ????????????????????????????????#??????## ##! | | ??????????????????????????????### ### # | | ?????????????????????? "%/ = | | ??????????????????????????????########## # ! | | ???????????????????????????????????????## ## [ [ = | | ????????????????????????????????????????# ##"#="## | | ????????????????????????????????????????# #? | | ????????????????????????????????????????# ##### #? | | ????????????????????? ???????????????# #??#" #? | | ???????????????????# ???????????????# #??## #? | | ???????????????????+ ???????????????# #???# #? | | ???????????????????# ???????????????# #???# #? | | ???????????????????# ???????????????# #???# #? | | ?????????????##+#### ???????????????# #???# #? | | ????????????# ???????????????# #???#[#? | | ????????????# #??????????????# #???#*#? | | ????????????# #?????????????##+#####%## | | ????????????# #?????????????# !=[ | | ????????????# #?????????????# | | | ????????????# #???????####??# | | ????????????# #########T #### | | ????????????# g@ # | | ????????????# # | | ????????????#w + | | ??????????? g # | | ??????????? # + | | ????????????# ###################### | | ????????????# ??????????????????????# | | ??????????? ????????????????????????# | | ????????????? ?????????????????????????########### | | ?????????????????????????????????????????????????? | | ?????????????????????????????????????????????????? | | ?????????????????????????????????????????????????? | | ?????????????????????????????????????????????????? | | ?????????????????????????????????????????????????? | | ?????????????????????????????????????????????????? | | ?????????????????????????????????????????????????? | | ?????????????????????????????????????????????????? | | ?????????????????????????????????????????????????? | | ?????????????????????????????????????????????????? | | ?????????????????????????????????????????????????? | | ?????????????????????????????????????????????????? | | ?????????????????????????????????????????????????? | | ?????????????????????????????????????????????????? | | ?????????????????????????????????????????????????? | | ?????????????????????????????????????????????????? | +----------------------------------------------------+ Best States ------------- Heat Dissipation 90 Energy Generation 32 Energy Capacity 510 Matter Stores 300 Matter Capacity 300 Sight Range 16 Terrain Scan Density 10 ECM Strength 2 Jamming Range 12 Corruption Block 14 Armor Coverage 2600 Resistance: KI 40 Resistance: EM 25 Weapon Shielding 66 Melee Speed Boost 20 Evasion (%) 55 Melee Accuracy 24 Target Analysis 9 Force Boost 20 Item Schematics ----------------- Deep Structural Scanner | -5/Factory | Extrapolated Mak. Coolant Network | -5/Factory | Extrapolated Mak. Medium Armor Plating | -5/Factory | Extrapolated Mak. Kinetic Plating | -5/Factory | Extrapolated Mak. Ablative Armor | -5/Factory | Extrapolated Machine Rigger | -5/Factory | Extrapolated Ripper | -5/Factory | Extrapolated Adv. Melee Analysis Suite | -5/Factory | Scanalyzed Force Lance | -5/Factory | Scanalyzed CPS Tube | -5/Factory | Scanalyzed Mak. Hacking Suite | -5/Factory | Scanalyzed Mak. Power Source | -5/Factory | Extrapolated Mapping Drone Bay | -5/Factory | Extrapolated Multitool | -5/Factory | Extrapolated Mak. System Restoration Module | -5/Factory | Extrapolated Mak. System Shield | -5/Factory | Extrapolated Robot Schematics ------------------ None Fabricated ------------ Adv. Melee Analysis Suite | x2 | -5/Factory Repaired ---------- Hrd. Heavy Armor Plating | 35% | -5/Factory Arm. Huge Wheel | 27% | -5/Factory | Broken Alien Tech Used ----------------- None Achievements -------------- None Challenges ------------ None Game ------ Seed MassJunkEdition Manual? 0 Play Time 01:43:33 Cumulative 304.8 hours Start 2025.05.24 @ 18:32:26 End 2025.05.24 @ 20:16:31 Sessions 1 Manual Loads 0 Difficulty Rogue Special Mode None Game No. 148 Rogue 105 Adventurer 43 Explorer 0 Win Type - Total 6 Types 4/0/1/0/0/0/0/1/0/0 Lore% 82 Gallery% 71 Achievement% 65 Wizard Run 0 Options --------- Layout 0 ASCII 0 Keyboard 0 Movement Mouse Keybinds 0 Fullscreen 1 Font 24/Smallcaps Map View 76x50 Zoom Use 0% Tactical HUD 1 Map Filters NONE Filters NONE Steam 1 RUN: 1ee0380c-cfa3-419d-bae7-0a8984561a62